Cogmind - Beta 13 @@@ ROGUE MODE // 2024.04.01 @ 22:52:18 Player: captainketchup Result: Self-destructed Performance ------------- Evolutions (1) 500 Regions Visited (2) 400 Robots Destroyed (15) 75 Value Destroyed (445) 445 Prototype IDs (0) 0 Alien Tech Used (0) 0 Bonus (0) 0 TOTAL SCORE: 1420 Bonus ------- None Cogmind --------- Core Integrity 230/400 Matter 212/300 Energy 110/160 System Corruption 0% Temperature Warm (153) Movement Core (250) Ox4 Location -9/Materials Parts ------- > --- POWER (1) -------- Light Nuclear Core > --- PROPULSION (2) --- (None) > --- UTILITY (3) ------ Medium Storage Unit > --- WEAPON (3) ------- (None) > --- INVENTORY (10) --- Ion Engine Ion Engine Aluminum Leg Improved Heat Sink Small Storage Unit Peak State ------------ > --- POWER ------------ Ion Engine > --- PROPULSION ------- Aluminum Leg Improved Aluminum Leg > --- UTILITY ---------- Heat Sink Medium Storage Unit > --- WEAPON ----------- Small Laser Particle Gun Light Cannon > --- INVENTORY -------- Ion Engine Ion Engine Light Nuclear Core Aluminum Leg Improved Heat Sink Small Storage Unit EM Pulse Gun [Rating: 11] Favorites ----------- Power Light Ion Engine Engine Light Ion Engine Power Core Light Nuclear Core Propulsion Light Treads Treads Light Treads Leg Aluminum Leg Utility Medium Storage Unit Device Heat Sink Storage Medium Storage Unit Processor Targeting Computer Weapon Light Assault Rifle Energy Gun Small Laser Ballistic Gun Light Assault Rifle Ballistic Cannon Light Cannon Build | -11 -10 -9 ------- Run | Yrd Mat Mat Slots Evolved 2 | . . 2 Power . | . . . Propulsion . | . . . Utility 1 | . . 1 Weapon 1 | . . 1 Parts Attached 20 | 6 7 7 Power 3 | 1 1 1 Engine 2 | 1 1 . Core 1 | . . 1 Reactor . | . . . Propulsion 5 | 2 2 1 Treads 2 | 2 . . Leg 3 | . 2 1 Wheel . | . . . Hover . | . . . Flight . | . . . Utility 4 | 1 2 1 Device 1 | . . 1 Storage 2 | 1 1 . Processor 1 | . 1 . Hackware . | . . . Protection . | . . . Artifact . | . . . Weapon 8 | 2 2 4 Energy Gun 5 | . 1 4 Energy Cannon . | . . . Ballistic Gun 2 | 2 . . Ballistic Cannon 1 | . 1 . Launcher . | . . . Special Weapon . | . . . Impact Weapon . | . . . Slashing Weapon . | . . . Piercing Weapon . | . . . Special Melee Weapon . | . . . Unidentified Prototypes . | . . . Parts Lost 16 | . 7 9 Power 2 | . 1 1 Propulsion 4 | . 2 2 Utility 2 | . 1 1 Weapon 8 | . 3 5 Highest Loss Streak 9 | . 7 9 To Critical Strikes . | . . . Average Slot Usage (%) 81 | . 84 73 Engine 12 | . 14 6 Treads 16 | . 21 . Leg 7 | . 3 17 Device 2 | . . 9 Storage 13 | . 14 11 Processor 4 | . 5 . Energy Gun 5 | . . 20 Ballistic Gun 16 | . 22 . Ballistic Cannon 3 | . 2 6 Naked Turns . | . . . Heaviest Build 23 | 10 18 23 Greatest Support 40 | 40 40 23 Greatest Overweight (x) 5 | . 5 2 Average Overweight (x) . | . . . Largest Inventory Capacity 10 | 8 10 10 Average Capacity 9 | 7 9 10 Most Carried 9 | 4 9 8 Average Carried 4 | 1 4 6 Final Capacity 10 | 8 10 10 Final Carried 9 | 2 9 5 Class Distribution -------------------- 81% | Mutant 14% | Scavenger-Gunner 3% | Scavenger-Mutant Dominant Class ---------------- Mutant | -10/Materials Scavenger-Gunner | -9/Materials Resources | -11 -10 -9 ----------- Run | Yrd Mat Mat Matter Collected 372 | 192 180 . Remotely . | . . . Salvage Created 519 | . 425 94 Parts 29 | . 25 4 Haulers Intercepted 1 | . 1 . Recyclers Shooed . | . . . Parts Field Recycled . | . . . Retrieved Matter . | . . . Parts Self-Destructed . | . . . Prevented . | . . . Kills | -11 -10 -9 ------- Run | Yrd Mat Mat Combat Hostiles Destroyed 14 | . 12 2 Guns 9 | . 7 2 Cannons 5 | . 5 . Classes Destroyed 4 | . 3 1 Hauler 1 | . 1 . Swarmer 3 | . 3 . Grunt 10 | . 9 1 Duelist 1 | . . 1 Best Kill Streak 6 | . 6 1 Combat Bots Only 6 | . 6 1 Max Kills in Single Turn 1 | . 1 1 Gunslinging . | . . . Exploded . | . . . Melee . | . . . Uniques/NPCs Destroyed . | . . . Combat | -11 -10 -9 -------- Run | Yrd Mat Mat Hostile Shots Fired 206 | . 139 67 Missed 59 | . 44 15 Damage Taken 1647 | . 930 717 Core 399 | . 229 170 Absorbed by Shields . | . . . Core Remaining (%) 54 | 100 8 . Volleys Fired 75 | . 55 20 Largest 3 | . 2 3 Hottest 140 | . 60 140 Shots Fired 120 | . 83 37 Gun 100 | . 67 33 Cannon 20 | . 16 4 Launcher . | . . . Special . | . . . Kinetic 83 | . 79 4 Thermal 24 | . . 24 Explosive . | . . . Electromagnetic 13 | . 4 9 Robot Hit Streak 6 | . 6 4 Robot Miss Streak 7 | . 7 5 Penetration Max . | . . . Secondary Targets 2 | . 2 . Max Gunslinging Chain 1 | . 1 . Shots Hit Robots 71 | . 50 21 Core Hits 30 | . 24 6 Critical Kills . | . . . Critical Parts Destroyed . | . . . Critical Strikes . | . . . Melee Attacks . | . . . Impact . | . . . Slashing . | . . . Piercing . | . . . Sneak Attacks . | . . . Combat Hostiles . | . . . Follow-up Attacks . | . . . Damage Inflicted 816 | . 535 281 Guns 616 | . 371 245 Cannons 187 | . 151 36 Explosions . | . . . Melee . | . . . Ramming 13 | . 13 . Kinetic 516 | . 480 36 Thermal 162 | . . 162 Explosive . | . . . Electromagnetic 125 | . 42 83 Impact . | . . . Slashing . | . . . Piercing . | . . . Highest Corruption . | . . . Average Corruption . | . . . Corruption Purged . | . . . Corruption Blocked . | . . . Overload Shots . | . . . Overflow Damage . | . . . Projectiles . | . . . Explosions . | . . . Melee . | . . . Knockbacks 2 | . 1 1 Impact . | . . . Kinetic 2 | . 1 1 Secondary . | . . . Self-Inflicted Damage . | . . . Shots . | . . . Rammed . | . . . Targets Rammed 3 | . 3 . Kicked 2 | . 2 . Crushed 1 | . 1 . Highest Temperature 154 | . 58 154 Average Temperature 35 | . 15 60 Received Heat Transfer 480 | . 246 234 Siege Activations . | . . . Robots Corrupted . | . . . Combat Hostiles . | . . . Parts Fried . | . . . Impact Corruptions . | . . . Robots Melted . | . . . Combat Hostiles . | . . . Parts Melted 1 | . . 1 Heat Transferred 360 | . . 360 Parts Sabotaged . | . . . Parts Stolen . | . . . Parts Stripped . | . . . Power Chain Reactions . | . . . Alert | -11 -10 -9 ------- Run | Yrd Mat Mat Peak Influence 273 | . 273 60 Initial 30 | . . 30 Average 59 | . 75 44 Maximum Alert Level 1 | . 1 . Low Security (%) 89 | 100 83 100 Level 1 10 | . 16 . Level 2 . | . . . Level 3 . | . . . Level 4 . | . . . Level 5 . | . . . High Security . | . . . Max Security . | . . . Squads Dispatched 3 | . 2 1 Investigation 1 | . 1 . Extermination . | . . . Reinforcement 2 | . 1 1 Assault . | . . . Garrison . | . . . Intercept . | . . . Searches Triggered . | . . . Construction Impeded . | . . . Haulers Reinforced . | . . . Active Scanning Responses . | . . . Cargo Convoy Interrupts . | . . . Stealth | -11 -10 -9 --------- Run | Yrd Mat Mat Distress Signals 2 | . 1 1 Communications Jammed . | . . . Distress Signals . | . . . Times Spotted 31 | . 18 13 Peak Tracking Total 10 | . 7 10 Tactical Retreats 3 | . 3 . Traps | -11 -10 -9 ------- Run | Yrd Mat Mat Traps Triggered . | . . . Indirectly . | . . . Trap Hack Attempts . | . . . Triggered . | . . . Disarmed . | . . . Reprogrammed . | . . . Reused . | . . . Traps Extracted . | . . . Installed . | . . . Triggered . | . . . Machines | -11 -10 -9 ---------- Run | Yrd Mat Mat Machines Disabled . | . . . Max in Single Turn . | . . . Machines Repaired . | . . . Machines Dismantled . | . . . Machines Sabotaged . | . . . Overloaded Fab Kills . | . . . Hacking | -11 -10 -9 --------- Run | Yrd Mat Mat Machines Accessed 2 | . 2 . Terminals 1 | . 1 . Fabricators . | . . . Repair Stations . | . . . Recycling Units 1 | . 1 . Scanalyzers . | . . . Garrison Access . | . . . Total Hacks 4 | . 4 . Successful 2 | . 2 . Failed 2 | . 2 . Catastrophic . | . . . Database Lockouts . | . . . Manual 1 | . 1 . Terminals 2 | . 2 . Fabricators . | . . . Repair Stations . | . . . Recycling Units 2 | . 2 . Scanalyzers . | . . . Garrison Access . | . . . Terminal Hacks . | . . . Fabricator Hacks . | . . . Repair Station Hacks . | . . . Recycling Unit Hacks 2 | . 2 . Report Inventory 1 | . 1 . Retrieve Components 1 | . 1 . Scanalyzer . | . . . Garrison Access Hacks . | . . . Unauthorized Hacks . | . . . Terminals . | . . . Fabricators . | . . . Repair Stations . | . . . Recycling Units . | . . . Scanalyzers . | . . . Garrison Access . | . . . Data Cores Recovered . | . . . Used . | . . . Hacking Detections 1 | . 1 . Full Trace Events 1 | . 1 . Feedback Events . | . . . Feedback Blocked . | . . . Robot Schematics Acquired . | . . . Robots Built . | . . . Authchips . | . . . Time . | . . . Total Robot Build Rating . | . . . Part Schematics Acquired . | . . . Parts Built . | . . . Authchips . | . . . Time . | . . . Total Part Build Rating . | . . . Parts Repaired . | . . . Time . | . . . Parts Recycled . | . . . Recycled Matter . | . . . Retrieved Matter . | . . . Retrieved Components 3 | . 3 . Parts Scanalyzed . | . . . Part Schematics Acquired . | . . . Parts Damaged . | . . . Bothacking | -11 -10 -9 ------------ Run | Yrd Mat Mat Used RIF Installer . | . . . Robots Hacked . | . . . Non-combat . | . . . Combat . | . . . Robot Hacks Applied . | . . . Relay Couplers Released . | . . . Fabnet Peak Effective % . | . . . Robots Rewired . | . . . Allies Hacked . | . . . Hacks Repelled . | . . . Allies | -11 -10 -9 -------- Run | Yrd Mat Mat Total Allies . | . . . Largest Group . | . . . Highest-Rated Group . | . . . Highest-Rated Ally . | . . . Total Orders . | . . . Ally Attacks . | . . . Total Damage . | . . . Kills . | . . . Allies Corrupted . | . . . Allies Melted . | . . . Intel | -11 -10 -9 ------- Run | Yrd Mat Mat Robot Analysis Total . | . . . Derelict Logs Recovered . | . . . Drone Launches . | . . . Drone Recoveries . | . . . Exploration | -11 -10 -9 ------------- Run | Yrd Mat Mat Turns Passed 604 | 76 400 128 Spaces Moved 257 | 46 161 50 Core 10 | 9 1 . Treads 178 | 37 141 . Legs 69 | . 19 50 Wheels . | . . . Hover . | . . . Flight . | . . . Fastest Speed 50 | 50 120 120 Average Speed 148 | 138 156 129 Slowest Speed 300 | 160 300 260 Overloaded Moves . | . . . Propulsion Burnouts . | . . . Robots Hopped . | . . . Cave-ins Triggered . | . . . Exploration Rate (%) 13 | 4 29 7 Regions Visited 2 Branch Regions . Pre-discovered Areas . | . . . Known Exits Taken . | . . . Unknown Exits Taken 2 | 1 1 . Scrap Searched . | . . . Spaces Dug . | . . . Terrain Destroyed . | . . . Melee . | . . . Projectile . | . . . AOE . | . . . Terrain Rammed . | . . . Walls Destroyed . | . . . Machines Disabled . | . . . Actions | -11 -10 -9 --------- Run | Yrd Mat Mat Total 370 | 57 235 78 Wait . | . . . Move 255 | 45 160 50 Hop . | . . . Pick Up 17 | 6 10 1 Fast Attach 5 | 2 3 . Attach 13 | 4 3 6 Detach . | . . . Swap 2 | . 1 1 Drop . | . . . Fire 75 | . 55 20 Melee . | . . . Ram . | . . . Kick 2 | . 2 . Crush 1 | . 1 . Escape Stasis . | . . . Rewire . | . . . Trap . | . . . Miscellaneous . | . . . Route ------- -11/Scrapyard -10/Materials -9/Materials History --------- Turn | Location | Event 2 | -11/Scrapyard | Met Revision 17 5 | -11/Scrapyard | Discovered new exit (range 16) 77 | -11/Scrapyard | Entered Materials 212 | -10/Materials | Discovered new exit (range 4) 317 | -10/Materials | Build established: Mutant 393 | -10/Materials | Core integrity fell below 50% 440 | -10/Materials | Lost 7 parts (1p2n1u3w) 441 | -10/Materials | Core integrity fell below 20% 477 | -10/Materials | Entered another Materials area 477 | -9/Materials | Evolved 2 slots: Utility x1, Weapon x1 605 | -9/Materials | Self-destructed Last Messages --------------- G-34 Mercenary unfolds itself. Acquired EM Shotgun. Ion Engine destroyed. Lgt. Cannon destroyed. Imp. Aluminum Leg destroyed. C-30 ARC bursts open, deploying its payload. S-10 Pest unfolds itself. Core Shielding melted. L-31 Rogue destroyed. Particle Gun destroyed. Sml. Laser destroyed. Heat Sink destroyed. G-34 Mercenary destroyed. Door malfunctions. R-06 Scavenger destroyed. Aluminum Leg destroyed. EM Shotgun destroyed. Critical hit (Burn: +37). EM Pulse Gun destroyed. Critical hit (Burn: +37). Map ----- +----------------------------------------------------+ | ??????????????????????????????# ??????????????? | | ??????????????????????????????# ??????????????? | | ??????????????????? ########## ####??????????? | | ?????????????????? #??????????? | | ?????????????????? #??????????? | | ?????????????????? #??????????? | | ?????????????????????############ ##??????????? | | ????????????????????????????????# #???????????? | | ????????????????????????????????# #???????????? | | ??????????????????????########### #???????????? | | ?????????????????????? #+######??????? | | ????????????????????? # #??????? | | ?????????????????????? # """ #??????? | | ??????????????????????? # """ #??????? | | ????????????????????????#o # """ #??????? | | ????????????????????????# u # #??????? | | ????????????????????????# # #??????? | | ???????????????????????## ##+#####??????? | | ???????????????????????# #???????? | | ???????????????????????# #???????? | | ???????????????????????# #???????? | | ???????????????????????##Y##### ########????? | | ??????????????????????###/##### # #????? | | ??????????????????????# !=%! *# s # #????? | | ??????????????????????# T!%= %Y% + #????? | | ??????????????????????# @!%=s# # """ #????? | | ??????????????????????######### # """ #????? | | ??????????????????????????????# #? """ #????? | | ??????????????????????????????# % #?######????? | | ??????????????????????????????# #???????????? | | ??????????????????????????????# #???????????? | | ??????????????????????????????+ #???????????? | | ??????????????????????????????# #???????????? | | ??????????????????????????????# #???????????? | | ??????????????????????????????# #???????????? | | ??????????????????????????????# #???????????? | | ??????????????????????????????# #???????????? | | ??????????????????????????????# #???????????? | | ??????????????????????????????+ #???????????? | | ??????????????????????????????? ????????????? | | ??????????????????????????????????????????????? | | ??????????????????????????????????????????????? | | ??????????????????????????????????????????????? | | ??????????????????????????????????????????????? | | ??????????????????????????????????????????????? | | ??????????????????????????????????????????????? | | ??????????????????????????????????????????????? | | ??????????????????????????????????????????????? | | ??????????????????????????????????????????????? | | ??????????????????????????????????????????????? | +----------------------------------------------------+ Best States ------------- Heat Dissipation 38 Energy Generation 14 Energy Capacity 250 Matter Stores 300 Matter Capacity 300 Sight Range 16 Terrain Scan Density 10 Evasion (%) 55 Targeting Accuracy 5 Recoil Reduction 2 Item Schematics ----------------- None Robot Schematics ------------------ None Fabricated ------------ Nothing Alien Tech Used ----------------- None Achievements -------------- Close Call Challenges ------------ None Game ------ Seed DecoderLightpackAxe Manual? 0 Play Time 00:11:30 Cumulative 7.9 hours Start 2024.04.01 @ 22:42:18 End 2024.04.01 @ 22:52:18 Sessions 1 Manual Loads 0 Difficulty Rogue Special Mode None Game No. 5 Rogue 5 Adventurer 0 Explorer 0 Win Type - Total 0 Types 0/0/0/0/0/0/0/0/0 Lore% 14 Gallery% 15 Achievement% 22 Wizard Run 0 Options --------- Layout 1 ASCII 0 Keyboard 0 Movement Arrows Keybinds 0 Fullscreen 0 Font 20/SmallcapsGlow Map View 50x35 Zoom Use 0% Tactical HUD 0 Map Filters NONE Filters NONE Steam 1 RUN: 998ec060-933e-4fc8-99e0-3d855971b59d